bitfinex/quotes_BTCUSD_20250131
["timestamp","ask_amount","ask_price","bid_price","bid_amount"]
[1738315934481,0.0001219,104290.0,104280.0,0.4214702]
[1738315935913,0.0001219,104290.0,104280.0,0.3214702]
[1738315936130,0.0001219,104290.0,104280.0,0.40669539]
[1738315937332,0.0001219,104290.0,104280.0,0.61669539]
[1738315938043,0.0001219,104290.0,104280.0,0.40669539]
[1738315938313,0.0001219,104290.0,104280.0,0.3214702]
[1738315939775,0.0001219,104290.0,104280.0,0.22422704]
[1738315942053,0.0001219,104290.0,104280.0,0.29402704]
[1738315944133,0.0101219,104290.0,104280.0,0.14402704]
[1738315944634,0.10736506,104290.0,104280.0,0.14402704]
[1738315945318,0.12673234,104290.0,104280.0,0.14402704]
[1738315945517,0.01948918,104290.0,104280.0,0.14428282]
[1738315945698,0.0001219,104290.0,104280.0,0.14428282]
[1738315946446,0.0001219,104290.0,104280.0,0.17398962]
[1738315946652,0.0001219,104290.0,104280.0,0.2545485]
[1738315946855,0.0001219,104290.0,104280.0,0.25358962]
[1738315947271,0.01926206,104300.0,104290.0,0.143829]
[1738315947490,0.03826276,104300.0,104290.0,1.10490541]
[1738315947711,0.03826276,104300.0,104290.0,0.14401304]
[1738315947921,0.0191226,104300.0,104290.0,0.14401304]
[1738315948134,0.0191226,104300.0,104290.0,1.10508945]
[1738315948355,0.0191226,104300.0,104290.0,0.14401304]
[1738315948566,0.0521226,104300.0,104290.0,0.14401304]
[1738315948781,0.29318076,104300.0,104290.0,0.14401304]
[1738315948998,0.14936576,104300.0,104290.0,0.14401304]
[1738315949422,0.14936576,104300.0,104290.0,0.13442872]
[1738315949863,0.13936576,104300.0,104290.0,0.13442872]
[1738315950431,0.28318076,104300.0,104290.0,0.00018404]
[1738315950662,0.033,104290.0,104280.0,0.22896974]
[1738315950868,0.13024316,104290.0,104280.0,0.21496975]
[1738315951477,0.27407216,104290.0,104280.0,0.21496975]
[1738315951705,0.13024316,104290.0,104280.0,0.21496975]
[1738315951997,0.73842012,104300.0,104280.0,0.40674675]
[1738315951998,0.21186463,104300.0,104280.0,0.40674675]
[1738315952228,0.10724316,104290.0,104280.0,0.21496975]
[1738315952445,0.13024316,104290.0,104280.0,0.21496975]
[1738315952661,0.38769765,104290.0,104280.0,0.07113275]
[1738315952869,0.38769765,104290.0,104270.0,0.191798]
[1738315952870,0.01,104280.0,104270.0,0.191798]
[1738315953085,0.10724316,104280.0,104270.0,0.191798]
[1738315953878,0.10724316,104280.0,104270.0,0.18258344]
[1738315954034,0.23086865,104280.0,104270.0,0.16858344]
[1738315954233,0.22086865,104280.0,104270.0,0.16858344]
[1738315954477,0.10724316,104280.0,104270.0,0.16858344]
[1738315956688,0.10715522,104280.0,104270.0,0.16858344]
[1738315956900,0.12658437,104280.0,104270.0,0.16858344]
[1738315958625,0.12658437,104280.0,104270.0,0.16883943]
[1738315959348,0.14589246,104280.0,104270.0,0.16883943]
[1738315963220,0.14589246,104280.0,104260.0,0.658058]
[1738315963411,0.14589246,104280.0,104260.0,0.65810618]
[1738315963631,0.14589246,104280.0,104270.0,0.191798]
[1738315964044,0.14589246,104280.0,104260.0,0.65810618]
[1738315964352,0.14589246,104280.0,104270.0,0.191798]
[1738315964931,0.14589246,104280.0,104260.0,0.65810618]
[1738315965308,0.14589246,104280.0,104270.0,0.191798]
[1738315966820,0.14589246,104280.0,104270.0,0.168938]
[1738315967370,0.48153346,104280.0,104260.0,0.50396459]
[1738315967583,0.31274146,104280.0,104270.0,0.143857]
[1738315967782,0.62815895,104280.0,104260.0,0.41832718]
[1738315968020,0.62815895,104280.0,104260.0,0.61015418]
[1738315968410,0.64815895,104280.0,104260.0,0.61015418]
[1738315968851,0.64815895,104280.0,104260.0,0.80197218]
[1738315969270,0.64815895,104280.0,104260.0,0.80196218]
[1738315969451,0.52453346,104280.0,104260.0,0.80196218]
[1738315969610,0.52453346,104280.0,104260.0,0.61014418]
[1738315969814,0.52453346,104280.0,104260.0,0.80196218]
[1738315970499,0.52453346,104280.0,104270.0,0.143857]
[1738315970705,0.33274146,104280.0,104270.0,0.143857]
[1738315971740,0.36843683,104280.0,104270.0,0.143857]
[1738315972543,0.36843683,104280.0,104260.0,0.61040017]
[1738315972772,0.143857,104270.0,104260.0,0.06594417]
[1738315972960,0.01,104260.0,104250.0,0.19743917]
[1738315973171,0.23086865,104260.0,104250.0,0.19743917]
[1738315973381,0.25111416,104260.0,104240.0,0.52785078]
[1738315973589,0.25111416,104260.0,104250.0,0.143884]
[1738315974002,0.44294616,104260.0,104240.0,0.52789896]
[1738315974214,0.37113543,104260.0,104240.0,0.52789896]
[1738315974431,0.27411416,104260.0,104240.0,0.52789896]
[1738315975172,0.143884,104250.0,104240.0,0.14419396]
[1738315975581,0.80142265,104260.0,104240.0,0.33605796]
[1738315975786,0.82020283,104260.0,104240.0,0.33605796]
[1738315975974,0.50473434,104260.0,104240.0,0.52791296]
[1738315976718,0.50473434,104260.0,104240.0,0.71976696]
[1738315977315,0.50473434,104260.0,104240.0,0.52790296]
[1738315978972,0.50473434,104260.0,104240.0,0.52791096]
[1738315979398,0.50473434,104260.0,104250.0,0.143884]
[1738315979574,0.01933692,104250.0,104240.0,0.52791096]
[1738315979781,0.50473434,104260.0,104240.0,0.52789796]
[1738315980607,0.69657334,104260.0,104240.0,0.33604396]
[1738315980748,0.13024316,104250.0,104240.0,0.19215796]
[1738315980955,0.12024316,104250.0,104240.0,0.19215796]
[1738315981254,0.13024316,104250.0,104240.0,0.19215796]
[1738315983373,0.27412716,104250.0,104240.0,0.19215796]
[1738315983988,0.29377659,104250.0,104240.0,0.19215796]
[1738315984363,0.14989259,104250.0,104240.0,0.19215796]
[1738315987292,0.29377659,104250.0,104240.0,0.19215796]
[1738315987481,0.14989259,104250.0,104240.0,0.19215796]
[1738315987687,0.36621497,104250.0,104240.0,0.00030396]
[1738315988337,0.31377659,104250.0,104240.0,0.14420196]
[1738315989547,0.16989259,104250.0,104240.0,0.14420196]
[1738315990291,0.13689259,104250.0,104240.0,0.14420196]
[1738315990497,0.01964943,104250.0,104240.0,0.22730196]
[1738315992737,0.498067,104270.0,104260.0,0.143871]
[1738315992871,0.59531016,104270.0,104260.0,0.143871]
[1738315994107,0.61245942,104270.0,104260.0,0.143871]
[1738315994678,0.72874234,104270.0,104260.0,0.143871]
[1738315994828,0.58487534,104270.0,104260.0,0.143871]
[1738315995045,0.48751858,104270.0,104260.0,0.270671]
[1738315995257,0.47751858,104270.0,104260.0,0.270671]
[1738315996734,0.03607542,104270.0,104260.0,0.270671]
[1738315996942,0.03892616,104270.0,104260.0,0.270671]
[1738315997685,0.01892616,104270.0,104260.0,0.270671]
[1738315998379,0.01892616,104270.0,104260.0,1.23174741]
[1738315999248,0.01892616,104270.0,104260.0,0.270671]
[1738315999662,0.03892616,104270.0,104260.0,0.270671]
[1738316000682,0.01892616,104270.0,104260.0,0.270671]
[1738316000892,0.16085663,104280.0,104260.0,0.270671]
[1738316000893,0.01700263,104280.0,104260.0,1.38174741]
[1738316001106,0.01700263,104280.0,104270.0,0.219457]
[1738316001379,0.01700263,104280.0,104270.0,0.32361387]
[1738316001583,0.0001219,104280.0,104270.0,0.32361387]
[1738316001786,0.0001219,104280.0,104270.0,0.35339338]
[1738316002436,0.0001219,104280.0,104270.0,0.32361387]
[1738316006246,0.0001219,104280.0,104270.0,0.47361387]
[1738316007706,0.01728301,104280.0,104270.0,0.47361387]
[1738316008062,0.0001219,104280.0,104270.0,0.47361387]
[1738316011591,0.01775884,104280.0,104270.0,0.47361387]
[1738316011727,0.0001219,104280.0,104270.0,0.47361387]
[1738316012308,0.0001219,104280.0,104270.0,0.57085703]
[1738316012956,0.0001219,104280.0,104270.0,0.60055064]
[1738316013402,0.0001219,104280.0,104270.0,0.57085703]
[1738316015582,0.01778994,104280.0,104270.0,0.57085703]
[1738316016111,0.0001219,104280.0,104270.0,0.57085703]
[1738316017262,0.0001219,104280.0,104270.0,0.50329846]
[1738316017606,0.0001219,104280.0,104270.0,0.47361387]
[1738316018835,0.01749926,104280.0,104270.0,0.47361387]
[1738316019037,0.01749926,104280.0,104270.0,0.32361387]
[1738316019369,0.0001219,104280.0,104270.0,0.269257]
[1738316020773,0.0001219,104280.0,104270.0,0.35477601]
[1738316020933,0.1439649,104280.0,104270.0,0.22937601]
[1738316021136,0.0001219,104280.0,104270.0,0.22937601]
[1738316021362,0.1439649,104280.0,104270.0,0.22937601]
[1738316021537,0.0001219,104280.0,104270.0,0.22937601]
[1738316021771,0.1439649,104280.0,104270.0,0.22937601]
[1738316021978,0.24120806,104280.0,104270.0,0.08551901]
[1738316022177,0.26120806,104280.0,104270.0,0.08551901]
[1738316022802,0.48219031,104280.0,104270.0,0.08551901]
[1738316023085,0.52769031,104280.0,104270.0,0.08551901]
[1738316023322,0.46333355,104280.0,104270.0,0.03374375]
[1738316023581,0.11429149,104280.0,104270.0,0.143857]
[1738316023792,0.01704833,104280.0,104270.0,0.293857]
[1738316025163,0.01704833,104280.0,104270.0,0.421257]
[1738316026033,0.01704833,104280.0,104270.0,0.51850016]
[1738316027488,0.01704833,104280.0,104270.0,0.57285703]
[1738316027693,0.01704833,104280.0,104270.0,0.63335832]
[1738316027925,0.01704833,104280.0,104270.0,0.66313852]
[1738316028103,0.01704833,104280.0,104270.0,0.61407028]
[1738316029245,0.01704833,104280.0,104270.0,0.61432627]
[1738316031430,0.01704833,104280.0,104270.0,0.5599694]
[1738316033118,0.01704833,104280.0,104270.0,0.54853635]
[1738316035397,0.01704833,104280.0,104270.0,0.6834131]
[1738316035622,0.0001219,104280.0,104270.0,0.7064131]
[1738316036628,0.0001219,104280.0,104270.0,0.67153635]
[1738316037281,0.0001219,104280.0,104270.0,0.57153635]
[1738316037690,0.0001219,104280.0,104270.0,0.67153635]
[1738316038093,0.0001219,104280.0,104270.0,0.64853635]
[1738316041432,0.0001219,104280.0,104270.0,1.07543935]
[1738316043218,0.0001219,104280.0,104270.0,0.64853635]
[1738316044308,0.0001219,104280.0,104270.0,0.40129319]
[1738316044511,0.0001219,104280.0,104270.0,0.25499319]
[1738316044914,0.0001219,104280.0,104270.0,0.40499319]
[1738316045245,0.0001219,104280.0,104270.0,0.32389319]
[1738316046257,0.01731005,104280.0,104270.0,0.32389319]
[1738316046452,0.0001219,104280.0,104270.0,0.32389319]
[1738316053513,0.01566426,104280.0,104270.0,0.32389319]
[1738316054336,0.01566426,104280.0,104270.0,0.29411299]
[1738316055574,0.01566426,104280.0,104270.0,0.37021299]
[1738316056327,0.01566426,104280.0,104270.0,0.39999418]
[1738316057232,0.01566426,104280.0,104270.0,0.49723734]
[1738316057856,0.01566426,104280.0,104270.0,0.54713734]
[1738316067671,0.01566426,104280.0,104270.0,0.39999418]
[1738316067885,0.01566426,104280.0,104270.0,0.32389418]
[1738316071553,0.03496762,104280.0,104270.0,0.32389418]
[1738316071937,0.01942526,104280.0,104270.0,0.32389418]
[1738316073587,0.0001219,104280.0,104270.0,0.54813734]
[1738316074005,0.01557324,104280.0,104270.0,0.54813734]
[1738316074149,0.0001219,104280.0,104270.0,0.54813734]
[1738316074996,0.0001219,104300.0,104290.0,0.143829]
[1738316076120,0.00026645,104300.0,104290.0,0.143829]
[1738316076549,0.01924069,104300.0,104290.0,0.143829]
[1738316080058,0.01924069,104300.0,104290.0,0.17366139]
[1738316080301,0.01924069,104300.0,104290.0,0.143829]
[1738316081726,0.11648385,104300.0,104290.0,0.143829]
[1738316081935,0.24010934,104300.0,104290.0,0.143829]
[1738316082096,0.28570934,104300.0,104290.0,0.143829]
[1738316082774,0.16208385,104300.0,104290.0,0.143829]
[1738316084213,0.42952434,104300.0,104290.0,0.143829]
[1738316084449,0.30589885,104300.0,104290.0,0.143829]
[1738316084973,0.30589885,104300.0,104290.0,0.22969194]
[1738316085375,0.30589885,104300.0,104290.0,0.08586294]
[1738316085574,0.5931811,104300.0,104290.0,0.08586294]
[1738316085784,0.49582434,104300.0,104290.0,0.08586294]
[1738316085923,0.52882434,104300.0,104290.0,0.05774895]
[1738316087630,0.52882434,104300.0,104290.0,0.03063895]
[1738316088251,0.1184,104290.0,104270.0,0.30616842]
[1738316088460,0.38472065,104280.0,104260.0,0.345632]
[1738316088672,0.38472065,104280.0,104270.0,0.143857]
[1738316088874,0.57651165,104280.0,104270.0,0.143857]
[1738316089032,0.57651165,104280.0,104260.0,0.537451]
[1738316089410,0.45288616,104280.0,104270.0,0.143857]
[1738316089641,0.43288616,104280.0,104270.0,0.143857]
[1738316089874,0.09724316,104280.0,104270.0,0.143857]
[1738316090075,0.3212,104290.0,104280.0,0.143843]
[1738316090276,0.41844316,104290.0,104280.0,0.143843]
[1738316092187,0.33698996,104290.0,104280.0,0.143843]
[1738316093403,0.01578996,104290.0,104280.0,0.143843]
[1738316093627,0.56656869,104300.0,104280.0,0.527413]
[1738316093831,0.66381185,104300.0,104280.0,0.527413]
[1738316094275,0.66381185,104300.0,104280.0,0.527405]
[1738316094566,0.66381185,104300.0,104280.0,0.719185]
[1738316094759,0.66381185,104300.0,104290.0,0.143829]
[1738316094760,0.47205585,104300.0,104290.0,0.143829]
[1738316095348,0.48796548,104300.0,104290.0,0.143829]
[1738316099070,0.13239348,104300.0,104290.0,0.143829]
[1738316099314,0.15239348,104300.0,104290.0,0.143829]
[1738316099520,0.29620848,104300.0,104290.0,0.143829]
[1738316101139,0.13239348,104300.0,104290.0,0.143829]
[1738316101558,0.13239348,104300.0,104290.0,0.219529]
[1738316102173,0.15239348,104300.0,104290.0,0.219529]
[1738316103240,0.15239348,104300.0,104290.0,0.21913336]
[1738316104393,0.15239348,104300.0,104280.0,0.52765999]
[1738316104394,0.41983397,104300.0,104280.0,0.52765999]
[1738316104594,0.36469765,104290.0,104280.0,0.00025599]
[1738316104802,0.38769765,104290.0,104280.0,0.00025599]
[1738316105210,0.80047149,104280.0,104260.0,0.33568]
[1738316105431,0.87773565,104270.0,104250.0,0.52781199]
[1738316105570,1.06955465,104270.0,104250.0,0.52781199]
[1738316105775,1.06955465,104270.0,104250.0,0.33596699]
[1738316105985,1.06956065,104270.0,104250.0,0.52781199]
[1738316106178,0.94593516,104270.0,104250.0,0.52781199]
[1738316106708,0.465071,104260.0,104250.0,0.19208899]
[1738316106867,0.41844316,104260.0,104250.0,0.19208899]
[1738316108318,0.56231416,104260.0,104250.0,0.19208899]
[1738316108792,0.41844316,104260.0,104250.0,0.19208899]
[1738316110404,0.41844316,104260.0,104250.0,0.26808899]
[1738316110405,0.3212,104260.0,104250.0,0.26808899]
[1738316110631,0.3212,104260.0,104250.0,0.31798899]
[1738316110960,0.3212,104260.0,104250.0,0.40384051]
[1738316114605,0.3212,104260.0,104250.0,0.35394051]
[1738316114801,0.33541089,104260.0,104250.0,0.35394051]
[1738316117418,0.43265405,104260.0,104250.0,0.35394051]
[1738316117615,0.43265405,104260.0,104250.0,0.27794051]
[1738316120244,0.57652505,104260.0,104250.0,0.27794051]
[1738316121287,0.43265405,104260.0,104250.0,0.27794051]
[1738316122527,0.43277595,104260.0,104250.0,0.27794051]
[1738316123063,0.43277595,104260.0,104250.0,0.35964051]
[1738316123272,0.33553279,104260.0,104250.0,0.35964051]
[1738316123472,0.33553279,104260.0,104250.0,0.40854051]
[1738316126991,0.33553279,104260.0,104250.0,0.32268899]
[1738316132139,0.34056184,104260.0,104250.0,0.32268899]
[1738316132765,0.34056184,104260.0,104250.0,0.34268899]
[1738316134814,0.01936184,104260.0,104250.0,0.34268899]
[1738316135571,0.01936184,104260.0,104250.0,0.29378899]
[1738316136371,0.01936184,104260.0,104250.0,0.32356827]
[1738316138511,0.24023049,104260.0,104250.0,0.24186827]
[1738316138720,0.116605,104260.0,104250.0,0.24186827]
[1738316141461,0.260476,104260.0,104250.0,0.24186827]
[1738316141671,0.116605,104260.0,104250.0,0.24186827]
[1738316145005,0.260476,104260.0,104250.0,0.24186827]
[1738316145752,0.116605,104260.0,104250.0,0.24186827]
[1738316145959,0.283476,104260.0,104250.0,0.24186827]
[1738316146160,0.27794609,104260.0,104250.0,0.24186827]
[1738316146560,0.13396887,104260.0,104250.0,0.24186827]
[1738316147292,0.27783987,104260.0,104250.0,0.24186827]
[1738316147876,0.13396887,104260.0,104250.0,0.24186827]
[1738316148624,0.11096887,104260.0,104250.0,0.24186827]
[1738316151084,0.01372571,104260.0,104250.0,0.36756827]
[1738316152843,0.33492571,104260.0,104250.0,0.36756827]
[1738316153662,0.33492571,104260.0,104250.0,0.31766827]
[1738316156719,0.43216887,104260.0,104250.0,0.31766827]
[1738316159278,0.43216887,104260.0,104250.0,0.31762827]
[1738316164949,0.43216887,104260.0,104250.0,0.36453427]
[1738316169462,0.43216887,104260.0,104250.0,0.24213427]
[1738316172624,0.57603987,104260.0,104250.0,0.24213427]
[1738316173101,0.69966536,104260.0,104250.0,0.05030127]
[1738316173312,0.14391,104240.0,104220.0,0.402109]
[1738316173522,1.08973165,104240.0,104220.0,0.6238941]
[1738316173737,0.10164667,104230.0,104220.0,0.19193818]
[1738316174358,0.10164667,104230.0,104220.0,0.23823818]
[1738316174359,0.00440351,104230.0,104220.0,0.23823818]
[1738316175259,0.00440351,104230.0,104220.0,0.27011873]
[1738316176300,0.00440351,104230.0,104220.0,0.35181873]
[1738316176891,0.02283386,104230.0,104220.0,0.35181873]
[1738316177338,0.00440351,104230.0,104220.0,0.35181873]
[1738316178347,0.00440351,104230.0,104220.0,0.30551873]
[1738316178566,0.10164667,104230.0,104220.0,0.19193818]
[1738316179614,0.24555867,104230.0,104220.0,0.19193818]
[1738316179946,0.10164667,104230.0,104220.0,0.19219438]
[1738316180141,0.36918416,104230.0,104220.0,0.19219438]
[1738316180353,0.36918416,104230.0,104220.0,0.00030438]
[1738316180530,0.36918416,104230.0,104220.0,0.14423038]
[1738316180803,0.24555867,104230.0,104220.0,0.14423038]
[1738316180992,0.80549962,104230.0,104220.0,0.00030438]
[1738316181201,0.80549962,104230.0,104220.0,0.14423038]
[1738316181673,0.68187413,104230.0,104220.0,0.14423038]
[1738316181886,0.80549962,104230.0,104220.0,0.08612031]
[1738316182090,0.80549962,104230.0,104220.0,0.23004631]
[1738316182654,0.68187413,104230.0,104220.0,0.23004631]
[1738316183279,0.70187413,104230.0,104220.0,0.23004631]
[1738316185501,0.60451737,104230.0,104220.0,0.14423038]
[1738316187597,0.60451737,104230.0,104220.0,0.00030438]
[1738316187754,0.72814286,104230.0,104220.0,0.14423038]
[1738316187961,0.60451737,104230.0,104220.0,0.14423038]
[1738316191332,0.28331737,104230.0,104220.0,0.14423038]
[1738316191760,0.32948068,104230.0,104220.0,0.14423038]
[1738316192378,0.28331737,104230.0,104220.0,0.14423038]
[1738316194125,0.28331737,104230.0,104220.0,0.00030438]
[1738316194636,0.36453445,104230.0,104220.0,0.00030438]
[1738316194836,0.34453445,104230.0,104220.0,0.00030438]
[1738316195040,0.36453445,104230.0,104220.0,0.143926]
[1738316196362,0.42129331,104230.0,104220.0,0.143926]
[1738316197269,0.3212,104220.0,104210.0,0.35687592]
[1738316197475,0.41844316,104220.0,104210.0,0.3569241]
[1738316197679,0.42351872,104220.0,104210.0,0.3569241]
[1738316201227,0.44305033,104220.0,104210.0,0.3569241]
[1738316204659,0.34580717,104220.0,104210.0,0.3569241]
[1738316204871,0.34580717,104220.0,104210.0,1.31800051]
[1738316206434,0.34580717,104220.0,104210.0,1.34781209]
[1738316208640,0.34580717,104220.0,104210.0,1.39751209]
[1738316212311,0.34580717,104220.0,104210.0,0.43643568]
[1738316214249,0.34580717,104220.0,104210.0,0.35061975]
[1738316215220,0.34580717,104220.0,104210.0,1.31169616]
[1738316215660,0.34592917,104220.0,104210.0,1.31169616]
[1738316221025,0.34592917,104220.0,104210.0,0.35061975]
[1738316221230,0.34592917,104220.0,104210.0,0.30091975]
[1738316222156,0.52438941,104220.0,104210.0,0.25295575]
[1738316222384,0.66831541,104220.0,104210.0,0.03011575]
[1738316222586,0.66831541,104220.0,104210.0,0.00030417]
[1738316223214,0.84688925,104220.0,104210.0,1e-08]
[1738316223419,0.82113249,104220.0,104210.0,1e-08]
[1738316225111,0.49993249,104220.0,104210.0,1e-08]
[1738316225325,0.49993249,104220.0,104190.0,0.43464113]
[1738316225326,0.22517008,104200.0,104190.0,0.2725696]
[1738316225551,0.64863335,104200.0,104190.0,0.2431925]
[1738316226860,0.85020719,104200.0,104190.0,0.0173255]
[1738316227088,0.87020719,104200.0,104190.0,0.0173255]
[1738316228379,0.54900719,104200.0,104190.0,0.0173255]
[1738316228537,0.64444595,104200.0,104190.0,0.0173255]
[1738316229165,0.64444595,104200.0,104190.0,0.00877604]
[1738316229550,0.79444595,104200.0,104190.0,0.00877604]
[1738316229764,0.89831887,104200.0,104190.0,0.00328804]
[1738316230155,0.77444595,104200.0,104190.0,0.00328804]
[1738316230784,0.79333534,104200.0,104190.0,0.00328804]
[1738316231405,0.81128823,104200.0,104190.0,0.00328804]
[1738316238212,0.143981,104180.0,104170.0,0.08795588]
[1738316238507,0.24122416,104180.0,104170.0,0.08795588]
[1738316238732,0.24619055,104180.0,104170.0,0.08795588]
[1738316240550,0.10220955,104180.0,104170.0,0.23195088]
[1738316242171,0.11904284,104180.0,104170.0,0.23195088]
[1738316242891,0.26302384,104180.0,104170.0,0.23195088]
[1738316244205,0.35650252,104180.0,104170.0,0.23195088]
[1738316244408,0.26302384,104180.0,104170.0,0.23195088]
[1738316246039,0.26302384,104180.0,104170.0,0.08795588]
[1738316246849,0.40591485,104180.0,104170.0,0.08795588]
[1738316248279,0.42891485,104180.0,104170.0,0.00985588]
[1738316250719,0.38634119,104180.0,104170.0,0.00985588]
[1738316250918,0.48369795,104180.0,104170.0,0.00985588]
[1738316252055,0.38634119,104180.0,104170.0,0.00985588]
[1738316255281,0.46764045,104180.0,104170.0,1e-08]
[1738316258622,0.50604645,104180.0,104170.0,1e-08]
[1738316259572,0.52604645,104180.0,104170.0,1e-08]
[1738316262333,0.44474719,104180.0,104170.0,1e-08]
[1738316263001,0.54210395,104180.0,104170.0,0.000256]
[1738316264708,0.62340321,104180.0,104170.0,0.000256]
[1738316264935,0.143995,104170.0,104160.0,0.07555599]
[1738316265148,0.32253742,104170.0,104160.0,0.1054657]
[1738316265356,0.32848444,104170.0,104160.0,0.1054657]
[1738316266109,0.32848444,104170.0,104160.0,0.07555599]
[1738316266322,0.144009,104160.0,104150.0,0.13475377]
[1738316266543,0.32255142,104160.0,104150.0,0.13475377]
[1738316266751,0.32750285,104160.0,104150.0,0.13475377]
[1738316267663,0.32750285,104160.0,104150.0,0.13489842]
[1738316268107,0.32750285,104160.0,104150.0,0.04900043]
[1738316268744,0.44391011,104160.0,104150.0,0.04900043]
[1738316268959,0.46000392,104150.0,104130.0,0.38384578]
[1738316269182,0.87844508,104150.0,104130.0,0.41384857]
[1738316269389,0.75451716,104150.0,104140.0,0.0753]
[1738316270945,0.87844508,104150.0,104140.0,0.0753]
[1738316271155,0.96980192,104150.0,104140.0,0.16127878]
[1738316271379,0.87844508,104150.0,104140.0,0.08597878]
[1738316273670,0.75451716,104150.0,104140.0,0.08597878]
[1738316274318,0.144036,104140.0,104130.0,0.35317515]
[1738316274520,0.56247916,104140.0,104130.0,0.35317515]
[1738316274950,0.42433368,104140.0,104130.0,0.35317515]
[1738316276289,0.32709052,104140.0,104130.0,0.35317515]
[1738316279268,0.56836968,104140.0,104130.0,0.35317515]
[1738316279518,0.58510201,104140.0,104130.0,0.35317515]
[1738316279723,0.58510201,104140.0,104130.0,0.26719637]
[1738316280495,0.26390201,104140.0,104130.0,0.26719637]
[1738316283554,0.11986601,104140.0,104130.0,0.26719637]
[1738316284125,0.26390201,104140.0,104130.0,0.26719637]
[1738316284788,0.26390201,104140.0,104130.0,0.35314129]
[1738316285407,0.11986601,104140.0,104130.0,0.35314129]
[1738316286282,0.02262285,104140.0,104130.0,0.35314129]
[1738316286693,0.02262285,104140.0,104130.0,0.4148528]
[1738316290448,0.02262285,104140.0,104130.0,0.32890788]
[1738316294407,0.02262285,104140.0,104130.0,0.29907692]
[1738316298173,0.16665885,104140.0,104130.0,0.26719637]
[1738316298423,0.48785885,104140.0,104130.0,0.26719637]
[1738316298622,0.34382285,104140.0,104130.0,0.26719637]
[1738316299907,0.34382285,104140.0,104130.0,0.29708454]
[1738316300531,0.34382285,104140.0,104130.0,0.17428454]
[1738316300951,0.58510201,104140.0,104130.0,0.17428454]
[1738316301782,0.60459113,104140.0,104130.0,0.17428454]
[1738316302012,0.60459113,104140.0,104130.0,0.14439637]
[1738316304848,0.60459113,104140.0,104130.0,0.23043353]
[1738316306421,0.60459113,104140.0,104130.0,0.08638553]
[1738316306635,0.68593851,104140.0,104130.0,0.08638553]
[1738316306867,0.60459113,104140.0,104130.0,0.23043553]
[1738316307274,0.60459113,104140.0,104130.0,0.14439837]
[1738316311704,0.36331197,104140.0,104130.0,0.22239837]
[1738316311930,0.36331197,104140.0,104130.0,0.2990983]
[1738316315301,0.3641135,104140.0,104130.0,0.2990983]
[1738316324432,0.3641135,104140.0,104130.0,0.1742983]
[1738316330644,0.46135666,104140.0,104130.0,0.0302483]
[1738316330861,0.60539266,104140.0,104130.0,0.0302483]
[1738316332237,0.60539266,104140.0,104130.0,0.00034837]
[1738316335759,0.60551466,104140.0,104130.0,0.00034837]
[1738316336390,0.60551466,104140.0,104130.0,0.00932855]
[1738316336965,0.28431466,104140.0,104130.0,0.00932855]
[1738316338142,0.28431466,104140.0,104130.0,0.15337855]
[1738316338367,0.14027866,104140.0,104130.0,0.15337855]
[1738316339306,0.14027866,104140.0,104130.0,0.18330827]
[1738316339637,0.14027866,104140.0,104130.0,0.17432809]
[1738316340611,0.14027866,104140.0,104130.0,0.14439837]
[1738316341026,0.14027866,104140.0,104130.0,0.17432841]
[1738316341383,0.14027866,104140.0,104130.0,0.14439837]
[1738316341598,0.28431466,104140.0,104130.0,0.14439837]
[1738316342819,0.60551466,104140.0,104130.0,0.14439837]
[1738316344600,0.60551466,104140.0,104130.0,0.00034837]
[1738316345030,0.60551466,104140.0,104130.0,0.14439837]
[1738316346725,0.68686204,104140.0,104130.0,0.14439837]
[1738316347563,0.68686204,104140.0,104130.0,0.00034837]
[1738316347795,0.76531919,104140.0,104130.0,0.00034837]
[1738316347999,0.68686204,104140.0,104130.0,0.00034837]
[1738316352874,0.68686204,104140.0,104130.0,0.08656772]
[1738316353279,0.60551466,104140.0,104130.0,0.08656772]
[1738316358110,0.68686204,104140.0,104130.0,0.08656772]
[1738316358412,0.60551466,104140.0,104130.0,0.00034837]
[1738316359301,0.60551466,104140.0,104130.0,0.22709837]
[1738316359901,0.46147866,104140.0,104130.0,0.22709837]
[1738316360543,0.46147866,104140.0,104130.0,0.27669837]
[1738316360544,0.3642355,104140.0,104130.0,0.27669837]
[1738316360796,0.02354638,104140.0,104130.0,0.30662842]
[1738316360984,0.16758238,104140.0,104130.0,0.30662842]
[1738316361190,0.02354638,104140.0,104130.0,0.30662842]
[1738316363937,0.16758238,104140.0,104130.0,0.30662842]
[1738316364124,0.02354638,104140.0,104130.0,0.30662842]
[1738316364593,0.16758238,104140.0,104130.0,0.30662842]
[1738316366146,0.02354638,104140.0,104130.0,0.30662842]
[1738316368165,0.02354638,104140.0,104130.0,0.31294842]
[1738316373367,0.02354638,104140.0,104130.0,0.30662842]
[1738316373701,0.02354638,104140.0,104130.0,0.31290842]
[1738316380488,0.02354638,104140.0,104130.0,0.46290842]
[1738316386910,0.02354638,104140.0,104130.0,0.17432842]
[1738316389749,0.02354638,104140.0,104130.0,0.17528865]
[1738316390536,0.04284354,104140.0,104130.0,0.17528865]
[1738316390859,0.02611121,104140.0,104130.0,0.17528865]
[1738316392390,0.00681405,104140.0,104130.0,0.30168865]
[1738316392591,0.00681405,104140.0,104130.0,0.30072842]
[1738316394921,0.00681405,104140.0,104130.0,0.45072842]
[1738316400877,0.00681405,104140.0,104130.0,0.54797158]
[1738316413598,0.00437334,104140.0,104130.0,0.54797158]
[1738316413831,0.00862281,104140.0,104130.0,0.54797158]
[1738316414251,0.0064976,104140.0,104130.0,0.54797158]
[1738316415868,0.00861925,104140.0,104130.0,0.67097158]
[1738316416116,0.00861925,104140.0,104130.0,1.27383158]
[1738316416320,0.00861925,104140.0,104130.0,1.33133093]
[1738316416496,0.00861925,104140.0,104130.0,1.67033093]
[1738316417050,0.000122,104140.0,104130.0,1.67033093]
[1738316417656,0.000122,104140.0,104130.0,1.67009093]
[1738316419790,0.000122,104140.0,104130.0,1.68891734]
[1738316419999,0.000122,104140.0,104130.0,1.35991734]
[1738316426474,0.000122,104140.0,104130.0,0.87705734]
[1738316426693,0.000122,104150.0,104140.0,0.304036]
[1738316426865,0.000122,104150.0,104140.0,3.13181652]
[1738316427046,0.000122,104150.0,104140.0,2.89216752]
[1738316428564,0.000122,104150.0,104140.0,3.03516752]
[1738316429729,0.000122,104150.0,104140.0,3.08473974]
[1738316430512,0.000122,104150.0,104140.0,3.45123974]
[1738316432933,0.000122,104150.0,104140.0,3.46458083]
[1738316435551,0.000122,104150.0,104140.0,3.47086083]
[1738316436136,0.000122,104150.0,104140.0,3.47090083]
[1738316437363,0.000122,104150.0,104140.0,5.70299761]
[1738316437775,0.000122,104150.0,104140.0,5.02988661]
[1738316439092,0.000122,104150.0,104140.0,5.08746661]
[1738316440262,1.128e-05,104150.0,104140.0,5.08746661]
[1738316440874,1.128e-05,104150.0,104140.0,5.0877226]
[1738316441498,0.0001219,104160.0,104150.0,0.403]
[1738316441795,0.0001219,104190.0,104180.0,0.393981]